fUSD/lending_fUSD_20250125
["ID","MTS","AMOUNT","RATE_DAILY","PERIOD"]
[350349643,1737807079498,-200.0,0.0002,2]
[350349644,1737807079507,-200.0,0.0002,2]
[350349645,1737807079516,-150.0,0.0002,2]
[350349646,1737807079525,-245.0,0.0002,2]
[350349647,1737807079536,-151.0,0.0002,2]
[350349648,1737807079545,-151.0,0.0002,2]
[350349649,1737807079556,-267.713642,0.0002,2]
[350349650,1737807079566,-151.0,0.0002,2]
[350349651,1737807079576,-5860.7365512,0.0002,2]
[350349652,1737807079588,-1265.07,0.0002,2]
[350349653,1737807079598,-2601.3120425,0.0002,2]
[350349654,1737807079609,-341.4658191,0.0002,2]
[350349655,1737807079619,-500.0,0.0002,2]
[350349656,1737807079628,-150.34643673,0.0002,2]
[350349657,1737807079638,-150.0,0.0002,2]
[350349658,1737807079648,-150.0,0.0002,2]
[350349659,1737807079660,-156.17335702,0.0002,2]
[350349660,1737807079671,-159.219143,0.0002,2]
[350349661,1737807079680,-159.219143,0.0002,2]
[350349662,1737807079690,-164.740247,0.0002,2]
[350349663,1737807079700,-164.740247,0.0002,2]
[350349664,1737807079711,-527.3868089,0.00020003,2]
[350349665,1737807079722,-1227.32900888,0.00020027,2]
[350349666,1737807079731,-625.00013937,0.00020027,2]
[350349667,1737807079741,-150.0,0.00020027,2]
[350349668,1737807079751,-150.0,0.0002003,2]
[350349669,1737807079761,-246.79375488,0.00020055,2]
[350349670,1737807079773,-150.0,0.00020056,2]
[350349671,1737807079785,-150.0,0.00020075,2]
[350349672,1737807079795,-1401.91,0.00020076,2]
[350349673,1737807079805,-566.71,0.00020089,2]
[350349674,1737807079814,-1227.32900888,0.0002011,2]
[350349675,1737807079824,-5988.7876877,0.00020123,2]
[350349676,1737807079833,-150.0,0.00020124,2]
[350349677,1737807079843,-914.17,0.00020136,2]
[350349678,1737807079853,-150.0,0.00020137,2]
[350349679,1737807079863,-150.0,0.00020163,2]
[350349680,1737807079873,-527.3868089,0.00020176,2]
[350349681,1737807079884,-150.0,0.00020181,2]
[350349682,1737807079893,-982.7,0.00020192,2]
[350349683,1737807079902,-437.34,0.00020192,2]
[350349684,1737807079914,-982.7,0.00020192,2]
[350349685,1737807079923,-982.7,0.00020192,2]
[350349686,1737807079932,-298.2,0.00020192,2]
[350349687,1737807079942,-977.1,0.00020192,2]
[350349688,1737807079952,-298.2,0.00020192,2]
[350349689,1737807079961,-1088.01040897,0.00020215,2]
[350349690,1737807079970,-1227.32900888,0.00020219,2]
[350349691,1737807079980,-204.55483482,0.00020219,2]
[350349692,1737807079989,-153.4161261,0.00020219,2]
[350349693,1737807080000,-298.2,0.00020247,2]
[350349694,1737807080009,-298.2,0.00020247,2]
[350349695,1737807080018,-298.2,0.00020247,2]
[350349696,1737807080028,-298.2,0.00020247,2]
[350349697,1737807080037,-298.2,0.00020247,2]
[350349698,1737807080047,-298.2,0.00020247,2]
[350349699,1737807080057,-150.0,0.00020258,2]
[350349700,1737807080066,-914.17,0.00020273,2]
[350349701,1737807080075,-1227.32900888,0.00020301,2]
[350349702,1737807080085,-204.55483482,0.00020301,2]
[350349703,1737807080095,-527.3868089,0.00020348,2]
[350349704,1737807080105,-153.4161261,0.00020356,2]
[350349705,1737807080115,-9087.0385916,0.00020379,2]
[350349706,1737807080124,-6126.35304055,0.00020397,2]
[350349707,1737807080133,-914.17,0.0002041,2]
[350349708,1737807080143,-1227.32900888,0.00020411,2]
[350349709,1737807080152,-204.55483482,0.00020411,2]
[350349710,1737807080161,-150.0,0.00020425,2]
[350349711,1737807080171,-150.0,0.00020452,2]
[350349712,1737807080180,-150.0,0.0002046,2]
[350349713,1737807080190,-150.0,0.00020482,2]
[350349714,1737807080199,-1227.32900888,0.00020493,2]
[350349715,1737807080209,-204.55483482,0.00020493,2]
[350349716,1737807080219,-2110.0,0.000205,2]
[350349717,1737807080228,-3000.0,0.000205,2]
[350349718,1737807080237,-150.0,0.00020506,2]
[350349719,1737807080247,-153.4161261,0.00020521,2]
[350349720,1737807080256,-527.3868089,0.00020521,2]
[350349721,1737807080266,-150.0,0.00020539,2]
[350349722,1737807080276,-914.17,0.00020547,2]
[350349723,1737807080285,-20449.32,0.00020548,2]
[350349724,1737807080295,-177.55,0.00020548,2]
[350349725,1737807080305,-151.338415,0.00020548,2]
[350349726,1737807080314,-164.740247,0.00020548,2]
[350349727,1737807080324,-164.740247,0.00020548,2]
[350349728,1737807080334,-150.0,0.00020552,2]
[350349729,1737807080343,-150.0,0.00020556,2]
[350349730,1737807080352,-1000.0,0.00020594,2]
[350349731,1737807080361,-1227.32900888,0.00020603,2]
[350349732,1737807080370,-204.55483482,0.00020603,2]
[350349733,1737807080380,-150.0,0.00020644,2]
[350349734,1737807080389,-153.4161261,0.00020658,2]
[350349735,1737807080398,-642.9136586,0.0002068,2]
[350349736,1737807080407,-914.17,0.00020684,2]
[350349737,1737807080416,-1227.32900888,0.00020685,2]
[350349738,1737807080426,-159.219143,0.00020685,2]
[350349739,1737807080435,-159.219143,0.00020685,2]
[350349740,1737807080445,-527.3868089,0.00020693,2]
[350349741,1737807080454,-1043.77342566,0.00020698,2]
[350349742,1737807080463,-20155.00711789,0.000207,2]
[350349743,1737807080473,-245.38051,0.000207,2]
[350349744,1737807080482,-1206.20530543,0.000207,2]
[350349745,1737807080579,-204.55483482,0.00020712,2]
[350349746,1737807080591,-1000.0,0.00020723,2]
[350349747,1737807080601,-150.0,0.00020737,2]
[350349748,1737807080611,-150.0,0.00020752,2]
[350349749,1737807080621,-566.71,0.00020758,2]
[350349750,1737807080631,-150.0,0.00020759,2]
[350349751,1737807080642,-150.0,0.00020793,2]
[350349752,1737807080651,-1227.32900888,0.00020795,2]
[350349753,1737807080661,-204.55483482,0.00020795,2]
[350349754,1737807080671,-600.0,0.000208,7]
[350349755,1737807080680,-180.27134514,0.000208,2]
[350349756,1737807080690,-544.07078844,0.000208,2]
[350349757,1737807080699,-150.0,0.00020814,2]
[350349758,1737807080709,-150.0,0.00020814,2]
[350349759,1737807080719,-914.17,0.00020821,2]
[350349760,1737807080728,-153.4161261,0.00020822,2]
[350349761,1737807080738,-613.33,0.00020826,2]
[350349762,1737807080748,-150.0,0.00020827,2]
[350349763,1737807080757,-150.0,0.00020834,2]
[350349764,1737807080767,-527.3868089,0.00020866,2]
[350349765,1737807080782,-1000.0,0.00020866,2]
[350349766,1737807080792,-1000.0,0.00020881,2]
[350349767,1737807080801,-1000.0,0.00020884,2]
[350349768,1737807080811,-500.0,0.00020894,2]
[350349769,1737807080821,-500.0,0.00020894,2]
[350349770,1737807080830,-500.0,0.00020894,2]
[350349771,1737807080840,-500.0,0.00020894,2]
[350349772,1737807080849,-500.0,0.00020894,2]
[350349773,1737807080860,-500.0,0.00020894,2]
[350349774,1737807080870,-712.0,0.00020894,2]
[350349775,1737807080880,-500.0,0.00020894,2]
[350349776,1737807080890,-500.0,0.00020894,2]
[350349777,1737807080899,-500.0,0.00020894,2]
[350349778,1737807080908,-500.0,0.00020894,2]
[350349779,1737807080917,-500.0,0.00020894,2]
[350349780,1737807080927,-500.0,0.00020894,2]
[350349781,1737807080936,-500.0,0.00020894,2]
[350349782,1737807080946,-500.0,0.00020894,2]
[350349783,1737807080955,-500.0,0.00020894,2]
[350349784,1737807080964,-500.0,0.00020894,2]
[350349785,1737807080973,-500.0,0.00020894,2]
[350349786,1737807080982,-500.0,0.00020894,2]
[350349787,1737807080992,-500.0,0.00020894,2]
[350349788,1737807081001,-500.0,0.00020894,2]
[350349789,1737807081010,-968.0,0.00020894,2]
[350349790,1737807081020,-500.0,0.00020894,2]
[350349791,1737807081029,-500.0,0.00020894,2]
[350349792,1737807081038,-500.0,0.00020894,2]
[350349793,1737807081047,-500.0,0.00020894,2]
[350349794,1737807081057,-500.0,0.00020894,2]
[350349795,1737807081066,-500.0,0.00020894,2]
[350349796,1737807081075,-500.0,0.00020894,2]
[350349797,1737807081085,-500.0,0.00020894,2]
[350349798,1737807081095,-500.0,0.00020894,2]
[350349799,1737807081104,-500.0,0.00020894,2]
[350349800,1737807081113,-500.0,0.00020894,2]
[350349801,1737807081123,-500.0,0.00020894,2]
[350349802,1737807081132,-500.0,0.00020894,2]
[350349803,1737807081142,-500.0,0.00020894,2]
[350349804,1737807081152,-500.0,0.00020894,2]
[350349805,1737807081160,-500.0,0.00020894,2]
[350349806,1737807081171,-500.0,0.00020894,2]
[350349807,1737807081180,-500.0,0.00020894,2]
[350349808,1737807081190,-500.0,0.00020894,2]
[350349809,1737807081199,-500.0,0.00020894,2]
[350349810,1737807081208,-500.0,0.00020894,2]
[350349811,1737807081217,-500.0,0.00020894,2]
[350349812,1737807081227,-500.0,0.00020894,2]
[350349813,1737807081236,-500.0,0.00020894,2]
[350349814,1737807081246,-500.0,0.00020894,2]
[350349815,1737807081255,-500.0,0.00020894,2]
[350349816,1737807081264,-500.0,0.00020894,2]
[350349817,1737807081273,-500.0,0.00020894,2]
[350349818,1737807081283,-500.0,0.00020894,2]
[350349819,1737807081292,-530.0,0.00020894,2]
[350349820,1737807081302,-500.0,0.00020894,2]
[350349821,1737807081311,-500.0,0.00020894,2]
[350349822,1737807081320,-500.0,0.00020894,2]
[350349823,1737807081331,-500.0,0.00020894,2]
[350349824,1737807081340,-500.0,0.00020894,2]
[350349825,1737807081351,-500.0,0.00020894,2]
[350349826,1737807081361,-500.0,0.00020894,2]
[350349827,1737807081370,-500.0,0.00020894,2]
[350349828,1737807081379,-500.0,0.00020894,2]
[350349829,1737807081389,-500.0,0.00020894,2]
[350349830,1737807081399,-500.0,0.00020894,2]
[350349831,1737807081408,-500.0,0.00020894,2]
[350349832,1737807081418,-500.0,0.00020894,2]
[350349833,1737807081428,-500.0,0.00020894,2]
[350349834,1737807081438,-500.0,0.00020894,2]
[350349835,1737807081447,-500.0,0.00020894,2]
[350349836,1737807081456,-500.0,0.00020894,2]
[350349837,1737807081466,-500.0,0.00020894,2]
[350349838,1737807081475,-500.0,0.00020894,2]
[350349839,1737807081485,-500.0,0.00020894,2]
[350349840,1737807081495,-500.0,0.00020894,2]
[350349841,1737807081505,-500.0,0.00020894,2]
[350349842,1737807081515,-500.0,0.00020894,2]
[350349843,1737807081524,-500.0,0.00020894,2]
[350349844,1737807081535,-500.0,0.00020894,2]
[350349845,1737807081544,-500.0,0.00020894,2]
[350349846,1737807081554,-500.0,0.00020894,2]
[350349847,1737807081563,-500.0,0.00020894,2]
[350349848,1737807081573,-500.0,0.00020894,2]
[350349849,1737807081582,-500.0,0.00020894,2]
[350349850,1737807081591,-500.0,0.00020894,2]
[350349851,1737807081600,-500.0,0.00020894,2]
[350349852,1737807081609,-500.0,0.00020894,2]
[350349853,1737807081618,-500.0,0.00020894,2]
[350349854,1737807081627,-500.0,0.00020894,2]
[350349855,1737807081637,-500.0,0.00020894,2]
[350349856,1737807081646,-500.0,0.00020894,2]
[350349857,1737807081656,-500.0,0.00020894,2]
[350349858,1737807081665,-500.0,0.00020894,2]
[350349859,1737807081675,-500.0,0.00020894,2]
[350349860,1737807081684,-500.0,0.00020894,2]
[350349861,1737807081693,-500.0,0.00020894,2]
[350349862,1737807081703,-500.0,0.00020894,2]
[350349863,1737807081712,-916.0,0.00020894,2]
[350349864,1737807081721,-152.0,0.00020895,4]
[350349865,1737807081731,-563.66,0.00020899,2]
[350349866,1737807081741,-2747.50209909,0.000209,2]
[350349867,1737807081751,-157201.21320245,0.000209,2]
[350349868,1737807081760,-5800.0,0.000209,2]
[350349869,1737807081770,-600.0,0.000209,7]
[350349870,1737807081785,-6126.35304055,0.000209,2]
[350349871,1737807081795,-204.55483482,0.00020904,2]
[350349872,1737807081804,-150.0,0.00020907,2]
[350349873,1737807081814,-150.0,0.00020926,2]
[350349874,1737807081824,-150.0,0.00020928,2]
[350349875,1737807081833,-150.0,0.00020937,2]
[350349876,1737807081842,-3652.14164612,0.00020951,2]
[350349877,1737807081852,-3652.14164608,0.00020951,2]
[350349878,1737807081861,-914.17,0.00020958,2]
[350349879,1737807081872,-150.0,0.00020961,2]
[350349880,1737807081881,-150.0,0.00020971,2]
[350349881,1737807081890,-150.0,0.00020973,2]
[350349882,1737807081899,-150.0,0.00020973,2]
[350349883,1737807081908,-5282.2558961,0.00020986,2]
[350349884,1737807081918,-4703.7752411,0.00020986,2]
[350349885,1737807081927,-2347.9901435,0.00020986,2]
[350349886,1737807081937,-2094.6682445,0.00020986,2]
[350349887,1737807081946,-368.4951211,0.00020986,2]
[350349888,1737807081956,-395.5244232,0.00020986,2]
[350349889,1737807081965,-9753.5774316,0.00020986,2]
[350349890,1737807081975,-10420.1162715,0.00020986,2]
[350349891,1737807081984,-2411.6858256,0.00020986,2]
[350349892,1737807081993,-2583.9348256,0.00020986,2]
[350349893,1737807082002,-204.55483482,0.00020986,2]
[350349894,1737807082012,-153.4161261,0.00020986,2]
[350349895,1737807082021,-150.0,0.00020986,4]
[350349896,1737807082030,-150.0,0.00020986,4]
[350349897,1737807082040,-173.15272143,0.00020986,4]
[350349898,1737807082049,-150.0,0.00020986,4]
[350349899,1737807082058,-150.17856381,0.00020986,4]
[350349900,1737807082067,-150.29206,0.00020986,4]
[350349901,1737807082077,-150.0,0.00020986,4]
[350349902,1737807082086,-150.0,0.00020986,4]
[350349903,1737807082095,-323.35,0.0002099,5]
[350349904,1737807082104,-563.66,0.00020998,2]
[350349905,1737807082113,-84238.50328188,0.00020999,5]
[350349906,1737807082128,-563.66,0.00020999,2]
[350349907,1737807082138,-563.66,0.00020999,2]
[350349908,1737807082147,-563.66,0.00020999,2]
[350349909,1737807082157,-563.66,0.00020999,2]
[350349910,1737807082167,-563.66,0.00020999,2]
[350349911,1737807082176,-563.66,0.00020999,2]
[350349912,1737807082186,-563.66,0.00020999,2]
[350349913,1737807082195,-563.66,0.00020999,2]
[350349914,1737807082205,-563.71,0.00020999,2]
[350349915,1737807082214,-66593.0,0.00021,2]
[350349916,1737807082224,-1968.94,0.00021,8]
[350349917,1737807082233,-9530.7551748,0.00021,3]
[350349918,1737807082243,-5292.46648249,0.00021,2]
[350349919,1737807082252,-419672.56858659,0.00021,15]
[350349920,1737807082433,-646.1276,0.00021,15]
[350349921,1737807082449,-369.1589122,0.00018803,2]
[350349922,1737807082461,-905.8310878,0.00018803,2]
[350349923,1737807082471,-127.7584028,0.00021,15]
[350349924,1737807082482,-494.369955,0.00021,15]
[350349925,1737807082493,-346.660013,0.00021,15]
[350349926,1737807082507,-690508.95774505,0.00021,15]
[350349927,1737807082545,-558.27443383,0.00021,15]
[350349928,1737807082694,-433.88984968,0.00016474,2]
[350349929,1737807082709,-89.28166488,0.00016474,2]
[350349930,1737807082719,-500.0,0.00016574,2]
[350349931,1737807082728,-500.0,0.00016711,2]
[350349932,1737807082738,-979.91468945,0.0001894,2]
[350349933,1737807082750,-295.07531055,0.0001894,2]
[350349934,1737807082760,-1228.48715778,0.00019077,2]
[350349935,1737807082773,-46.50284222,0.00019077,2]
[350349936,1737807082785,-1274.99,0.00019214,2]
[350349937,1737807082795,-1274.99,0.00019351,2]
[350349938,1737807082805,-1274.99,0.00019488,2]
[350349939,1737807082814,-1275.00919602,0.00019625,2]
[350349940,1737807082825,-4853.51796176,0.00021,15]
[350349941,1737807082936,-711.3485025,0.00021,15]
[350349942,1737807082961,-511.25,0.00021,15]
[350349943,1737807082972,-664.62,0.00021,15]
[350349944,1737807083169,-500.0,0.00016574,2]
[350349945,1737807083179,-536.4,0.00020051,2]
[350349946,1737807083190,-463.6,0.00020051,2]
[350349947,1737807083201,-1000.0,0.00020062,2]
[350349948,1737807083210,-1000.0,0.00020259,2]
[350349949,1737807083220,-271.77424432,0.00020606,2]
[350349950,1737807083230,-303048.04217615,0.00021,15]
[350349951,1737807083328,-500.0,0.00016438,2]
[350349952,1737807083338,-500.0,0.00016474,2]
[350349953,1737807083347,-182.08676696,0.00016574,2]
[350349954,1737807083359,-317.91323304,0.00016574,2]
[350349955,1737807083369,-500.0,0.00016575,2]
[350349956,1737807083378,-10.54036697,0.00016611,2]
[350349957,1737807083391,-489.45963303,0.00016611,2]
[350349958,1737807083400,-298.2,0.00020192,2]
[350349959,1737807083410,-712.34036697,0.00021,15]
[350349960,1737807083427,-500.0,0.00016438,2]
[350349961,1737807083436,-2612.5000505,0.00021,15]
[350349977,1737807955316,5504.71216053,6.94e-05,2]
[350350001,1737808231754,-300.0,9.999e-05,2]
[350350002,1737808231764,-150.0,9.999e-05,2]
[350350004,1737808231774,-639.85407934,9.999e-05,2]
[350350006,1737808231783,-306.64813287,0.0001,2]
[350350008,1737808231917,-494.11998,0.0001,2]
[350350009,1737808231976,-6222.230903,0.0001,2]
[350350010,1737808231985,-69177.7665318,0.0001,2]
[350350011,1737808231996,-119000.00001528,0.0001,2]
[350350012,1737808232034,-11057.43653411,0.0001,2]
[350350013,1737808232045,-576.47308612,0.0001,2]
[350350014,1737808232092,-926.999997,0.0001,2]
[350350015,1737808232151,-263405.3493347,0.0001,2]
[350350025,1737808237743,-107735.99720001,0.0001,2]
[350350026,1737808237754,-242.88,0.00010137,2]
[350350027,1737808237764,-213.40781597,0.000108,2]
[350350028,1737808237776,-193.15503267,0.000109,2]
[350350029,1737808237786,-420.0,0.00010999,2]
[350350030,1737808237796,-211.0,0.00010999,2]
[350350031,1737808237806,-20301.15412057,0.00011,2]
[350350032,1737808237816,-9973.13309609,0.00011099,2]
[350350033,1737808237825,-9973.13309601,0.00011244,2]
[350350034,1737808237835,-193.1550326,0.00011646,2]
[350350035,1737808237845,-500.0,0.000119,4]
[350350036,1737808237854,-206.91330599,0.000119,2]
[350350037,1737808237864,-2294.31453618,0.000119,2]
[350350038,1737808237874,-725.38479154,0.000119,2]
[350350039,1737808237883,-505.39716572,0.00011973,2]
[350350040,1737808237893,-153.50834302,0.00011973,2]
[350350041,1737808237903,-941873.95057535,0.00012,2]
[350350042,1737808237912,-88787.69995296,0.00012,2]
[350350043,1737808237922,-932.58035058,0.00012129,2]
[350350044,1737808237932,-7888.04893726,0.00012229,2]
[350350045,1737808237942,-178.91,0.00012329,2]
[350350046,1737808237951,-9973.13309601,0.00012451,2]
[350350047,1737808237961,-7888.04893717,0.00013192,2]
[350350048,1737808237971,-193.1550326,0.00013255,2]
[350350049,1737808237980,-9973.13309601,0.00013658,2]
[350350050,1737808237989,-229.14,0.000137,2]
[350350051,1737808237999,-229.14,0.000137,2]
[350350052,1737808238008,-932.58035054,0.00013758,2]
[350350053,1737808238020,-1309.09,0.00013792,2]
[350350054,1737808238030,-7888.04893717,0.00014156,2]
[350350055,1737808238039,-673.04,0.0001471,2]
[350350056,1737808238050,-193.1550326,0.00014864,2]
[350350057,1737808238059,-9973.13309601,0.00014865,2]
[350350058,1737808238069,-550.0,0.00015,2]
[350350059,1737808238079,-7888.04893717,0.00015119,2]
[350350060,1737808238089,-215.27,0.00015236,2]
[350350061,1737808238098,-395.79,0.00015319,2]
[350350062,1737808238107,-932.58035054,0.00015386,2]
[350350063,1737808238117,-250.0,0.00015517,2]
[350350064,1737808238129,-174.72,0.00015589,2]
[350350065,1737808238139,-681.22,0.00015623,2]
[350350067,1737808238148,-23900.0,0.00015645,2]
[350350068,1737808238158,-1000.0,0.00015646,2]
[350350070,1737808238169,-571.7246425,0.000158,2]
[350350072,1737808238179,-571.72464225,0.000158,2]
[350350074,1737808238188,-571.72464225,0.000158,2]
[350350076,1737808238199,-571.72464225,0.000158,2]
[350350078,1737808238208,-571.72464225,0.000158,2]
[350350080,1737808238218,-571.72464225,0.000158,2]
[350350082,1737808238227,-571.72464225,0.000158,2]
[350350084,1737808238236,-571.72464225,0.000158,2]
[350350086,1737808238245,-571.72464225,0.000158,2]
[350350088,1737808238255,-571.72464225,0.000158,2]
[350350090,1737808238264,-571.72464225,0.000158,2]
[350350092,1737808238275,-571.72464225,0.000158,2]
[350350094,1737808238284,-571.72464225,0.000158,2]
[350350097,1737808238294,-571.72464225,0.00015831,2]
[350350099,1737808238303,-291.06,0.0001595,2]
[350350101,1737808238312,-1309.09,0.00016056,2]
[350350102,1737808238321,-9973.13309601,0.00016071,2]
[350350104,1737808238331,-7888.04893717,0.00016083,2]
[350350107,1737808238340,-178.91,0.00016096,2]
[350350108,1737808238349,-2147.0,0.000162,5]
[350350110,1737808238359,-571.72464225,0.0001621,2]
[350350112,1737808238368,-1000.0,0.00016338,2]
[350350114,1737808238377,-2006.6589,0.00016338,2]
[350350116,1737808238386,-31564.7796,0.00016374,2]
[350350118,1737808238395,-275.92887426,0.00016437,2]
[350350120,1737808238405,-500.0,0.00016438,2]
[350350122,1737808238416,-500.0,0.00016438,2]
[350350124,1737808238425,-500.0,0.00016438,2]
[350350126,1737808238434,-500.0,0.00016438,2]
[350350128,1737808238443,-500.0,0.00016438,2]
[350350130,1737808238454,-500.0,0.00016438,2]
[350350132,1737808238463,-500.0,0.00016438,2]
[350350134,1737808238472,-500.0,0.00016438,2]
[350350135,1737808238481,-500.0,0.00016438,2]
[350350136,1737808238490,-500.0,0.00016438,2]
[350350137,1737808238499,-500.0,0.00016438,2]
[350350138,1737808238509,-500.0,0.00016438,2]
[350350139,1737808238519,-500.0,0.00016438,2]
[350350140,1737808238528,-500.0,0.00016438,2]
[350350141,1737808238537,-500.0,0.00016438,2]
[350350142,1737808238546,-500.0,0.00016438,2]
[350350143,1737808238555,-500.0,0.00016438,2]
[350350144,1737808238564,-500.0,0.00016438,2]
[350350145,1737808238574,-500.0,0.00016438,2]
[350350146,1737808238583,-500.0,0.00016438,2]
[350350147,1737808238592,-500.0,0.00016438,2]
[350350148,1737808238602,-500.0,0.00016438,2]
[350350149,1737808238611,-500.0,0.00016438,2]
[350350150,1737808238620,-500.0,0.00016438,2]
[350350151,1737808238630,-500.0,0.00016438,2]
[350350152,1737808238639,-500.0,0.00016438,2]
[350350153,1737808238648,-516.93864431,0.00016438,2]
[350350154,1737808238658,-500.0,0.00016438,2]
[350350155,1737808238671,-500.0,0.00016438,2]
[350350156,1737808238689,-500.0,0.00016438,2]
[350350157,1737808238699,-500.0,0.00016438,2]
[350350158,1737808238707,-500.0,0.00016438,2]
[350350159,1737808238717,-500.0,0.00016438,2]
[350350160,1737808238727,-500.0,0.00016438,2]
[350350161,1737808238736,-500.0,0.00016438,2]
[350350162,1737808238745,-500.0,0.00016438,2]
[350350163,1737808238754,-500.0,0.00016438,2]
[350350164,1737808238763,-874.74,0.00016438,2]
[350350165,1737808238774,-500.0,0.00016438,2]
[350350166,1737808238784,-500.0,0.00016438,2]
[350350167,1737808238793,-500.0,0.00016438,2]
[350350168,1737808238803,-500.0,0.00016438,2]
[350350169,1737808238812,-1077.13,0.00016438,2]
[350350170,1737808238821,-500.0,0.00016438,2]
[350350171,1737808238831,-1025.19,0.00016438,2]
[350350172,1737808238840,-500.0,0.00016438,2]
[350350173,1737808238850,-500.0,0.00016438,2]
[350350174,1737808238859,-500.0,0.00016438,2]
[350350175,1737808238869,-500.0,0.00016438,2]
[350350176,1737808238878,-500.0,0.00016438,2]
[350350177,1737808238887,-818.65,0.00016438,2]
[350350178,1737808238897,-1515.13,0.00016438,2]
[350350179,1737808238906,-500.0,0.00016438,2]
[350350180,1737808238916,-500.0,0.00016438,2]
[350350181,1737808238925,-500.0,0.00016438,2]
[350350182,1737808238935,-1402.24,0.00016438,2]
[350350183,1737808238944,-500.0,0.00016438,2]
[350350184,1737808238953,-500.0,0.00016438,2]
[350350185,1737808238963,-500.0,0.00016438,2]
[350350186,1737808238972,-500.0,0.00016438,2]
[350350187,1737808238981,-500.0,0.00016438,2]
[350350188,1737808238990,-500.0,0.00016438,2]
[350350189,1737808238999,-997.1,0.00016438,2]
[350350190,1737808239009,-770.62,0.00016438,2]
[350350191,1737808239018,-500.0,0.00016438,2]
[350350192,1737808239027,-500.0,0.00016438,2]
[350350193,1737808239036,-1167.67,0.00016438,2]
[350350194,1737808239046,-500.0,0.00016438,2]
[350350195,1737808239055,-500.0,0.00016438,2]
[350350196,1737808239065,-500.0,0.00016438,2]
[350350197,1737808239074,-500.0,0.00016438,2]
[350350198,1737808239083,-500.0,0.00016438,2]
[350350199,1737808239093,-970.28,0.00016438,2]
[350350200,1737808239102,-500.0,0.00016438,2]
[350350201,1737808239112,-500.0,0.00016438,2]
[350350202,1737808239132,-193.1550326,0.00016473,2]
[350350203,1737808239143,-210.725843,0.00016474,2]
[350350204,1737808239152,-500.0,0.00016474,2]
[350350205,1737808239165,-500.0,0.00016474,2]
[350350206,1737808239174,-500.0,0.00016474,2]
[350350207,1737808239183,-500.0,0.00016474,2]
[350350208,1737808239195,-500.0,0.00016474,2]
[350350209,1737808239205,-500.0,0.00016474,2]
[350350210,1737808239214,-500.0,0.00016474,2]
[350350211,1737808239223,-500.0,0.00016474,2]
[350350212,1737808239233,-500.0,0.00016474,2]
[350350213,1737808239242,-500.0,0.00016474,2]
[350350214,1737808239251,-500.0,0.00016474,2]
[350350215,1737808239261,-200.62917503,0.00016474,2]
[350350216,1737808239270,-486.04334814,0.00016474,2]
[350350217,1737808239279,-238.13178,0.00016574,2]
[350350218,1737808239289,-502.70107351,0.00016574,2]
[350350219,1737808239298,-209.79478464,0.00016574,2]
[350350220,1737808239308,-500.0,0.00016574,2]
[350350221,1737808239317,-500.0,0.00016574,2]
[350350222,1737808239326,-502.60321327,0.00016574,2]
[350350223,1737808239336,-504.73226053,0.00016574,2]
[350350224,1737808239536,-503.8115263,0.00016574,2]
[350350225,1737808239547,-500.85430862,0.00016574,2]
[350350226,1737808239556,-501.5059947,0.00016574,2]